bitfinex-derivatives/quotes_ETHF0:USTF0_20251012
["timestamp","ask_amount","ask_price","bid_price","bid_amount"]
[1760231874183,0.1361,3729.0,3727.8,0.36832547]
[1760231874384,0.81439,3728.0,3727.8,0.02682547]
[1760231874590,0.332,3727.9,3727.8,0.02682547]
[1760231874888,0.48239,3728.0,3727.8,0.02682547]
[1760231875090,0.48562501,3728.0,3727.9,0.3415]
[1760231875491,0.48562501,3728.0,3727.8,0.02682547]
[1760231875689,0.00323501,3728.0,3727.9,0.3415]
[1760231875884,0.48562501,3728.0,3727.8,0.02682547]
[1760231876090,0.81762501,3728.0,3727.8,0.02682547]
[1760231876285,0.332,3727.9,3727.8,0.02682547]
[1760231877393,5.332,3727.9,3726.9,0.3415]
[1760231877593,0.48243,3727.7,3726.7,0.3415]
[1760231877796,0.48247,3727.4,3726.7,0.48255]
[1760231877995,0.48251,3727.1,3726.6,0.3415]
[1760231878294,0.48251,3727.1,3726.5,0.96903853]
[1760231878486,0.332,3727.5,3726.6,0.3415]
[1760231878789,0.48256,3726.7,3726.5,0.00186853]
[1760231878993,0.332,3727.6,3726.5,0.14496853]
[1760231879196,0.332,3727.6,3726.6,0.3415]
[1760231879392,0.48252,3727.0,3726.5,0.62753853]
[1760231879691,0.48252,3727.0,3726.6,0.3415]
[1760231879891,0.332,3727.4,3726.5,0.00186853]
[1760231880089,0.81455,3726.8,3726.5,0.00186853]
[1760231880288,0.81457,3726.6,3726.5,0.00186853]
[1760231881190,0.48256,3726.7,3726.5,0.14496853]
[1760231881399,0.81456,3726.7,3726.5,0.00186853]
[1760231881893,0.48256,3726.7,3726.5,0.00186853]
[1760231882198,0.332,3726.6,3726.5,0.00186853]
[1760231882893,5.332,3726.6,3726.5,0.00186853]
[1760231883100,1.5385,3726.4,3725.2,0.3415]
[1760231883293,1.5385,3726.4,3725.0,0.1431]
[1760231883294,0.48274,3725.3,3725.0,0.1431]
[1760231883503,0.48273,3725.4,3725.1,0.3415]
[1760231883693,0.48274,3725.3,3725.1,0.3415]
[1760231883890,0.48276,3725.2,3725.1,0.3415]
[1760231884200,0.00232209,3725.2,3724.6,0.3415]
[1760231884499,0.33432209,3725.2,3724.6,0.3415]
[1760231884796,0.33432209,3725.2,3724.5,0.62593]
[1760231884797,0.48277,3725.1,3724.5,0.62593]
[1760231884997,0.48277,3725.1,3724.5,0.4941]
[1760231885192,0.48282,3724.7,3724.1,0.351]
[1760231885697,0.8152,3724.9,3724.2,0.48287]
[1760231886193,0.8152,3724.9,3724.0,0.1431]
[1760231886194,0.48508209,3725.2,3724.5,0.48283]
[1760231886396,0.48508209,3725.2,3724.6,0.83382]
[1760231886798,0.00232209,3725.2,3725.1,0.351]
[1760231889495,0.00232209,3725.2,3724.6,0.351]
[1760231889696,0.00232209,3725.2,3724.7,0.48281]
[1760231889898,0.00232209,3725.2,3725.1,0.351]
[1760231891903,0.48277,3725.1,3724.8,0.351]
[1760231892103,0.48281,3724.8,3724.5,0.351]
[1760231892313,0.81521,3724.8,3724.5,0.351]
[1760231892608,0.48283,3724.6,3724.3,0.351]
[1760231892909,0.81523,3724.6,3724.3,0.351]
[1760231893405,0.48283,3724.6,3724.4,0.351]
[1760231893606,0.81518,3725.0,3724.4,0.83385]
[1760231893804,0.00232209,3725.2,3724.6,0.351]
[1760231894308,0.4828,3724.9,3724.6,0.351]
[1760231894511,0.48288,3724.2,3724.1,0.351]
[1760231894715,0.3324,3724.4,3723.7,0.48294]
[1760231895014,0.48292,3723.9,3723.6,0.351]
[1760231895714,0.0577,3724.5,3723.1,0.351]
[1760231895917,0.48295,3723.7,3723.1,0.83401]
[1760231896217,0.3324,3723.8,3723.0,0.1401]
[1760231896218,0.81534,3723.8,3723.4,0.351]
[1760231896415,0.3324,3723.6,3722.8,0.0268615]
[1760231896712,0.3324,3723.6,3722.8,0.5099215]
[1760231896920,0.3324,3723.6,3722.9,0.351]
[1760231897115,0.48305,3723.0,3722.8,0.0268615]
[1760231897420,0.3324,3722.9,3722.8,0.0268615]
[1760231898108,1.27689,3724.0,3722.8,0.0268615]
[1760231898109,0.48299,3723.4,3722.9,0.351]
[1760231898315,0.3324,3723.9,3722.8,0.0268615]
[1760231898517,0.3324,3723.7,3722.8,0.0268615]
[1760231898816,0.48305,3723.0,3722.8,0.0268615]
[1760231899017,0.3324,3722.9,3722.8,0.0268615]
[1760231900121,0.8155,3722.6,3722.0,0.48316]
[1760231900314,0.8155,3722.6,3722.2,0.00183765]
[1760231900820,0.3324,3722.6,3722.2,0.00183765]
[1760231901017,0.3324,3723.4,3722.2,0.00183765]
[1760231901322,0.3324,3723.4,3722.5,0.1401]
[1760231901620,0.48286,3724.4,3723.7,0.48293]
[1760231901815,0.81527,3724.3,3723.7,0.48293]
[1760231902018,0.81527,3724.3,3723.4,0.351]
[1760231902325,0.4685,3725.0,3723.7,1.20735]
[1760231902616,0.4685,3725.0,3724.0,0.4911]
[1760231902617,0.3324,3725.0,3724.0,0.4911]
[1760231902812,0.48272,3725.5,3725.1,0.351]
[1760231903019,0.48272,3725.5,3725.1,0.00183765]
[1760231903215,0.3324,3725.7,3725.1,0.35283765]
[1760231904222,0.48264,3726.1,3725.1,0.35283765]
[1760231904423,0.48267,3725.9,3725.1,0.35283765]
[1760231904624,0.3324,3725.8,3725.1,0.35283765]
[1760231905221,0.81508,3725.8,3725.1,0.35283765]
[1760231905720,0.48262,3726.2,3725.8,0.351]
[1760231905922,0.3324,3726.1,3725.8,0.351]
[1760231906118,0.3324,3726.1,3725.5,0.48271]
[1760231906320,0.1361,3726.5,3725.1,0.00183765]
[1760231906618,0.81523,3724.6,3724.1,0.351]
[1760231906820,0.48274,3725.3,3724.1,0.351]
[1760231907015,0.48277,3725.1,3724.1,0.351]
[1760231907216,0.48277,3725.1,3724.3,0.48286]
[1760231907527,0.00312176,3725.1,3724.6,0.48282]
[1760231907921,0.00312176,3725.1,3724.9,0.48278]
[1760231908127,0.00312176,3725.1,3725.0,0.4911]
[1760231908425,0.00312176,3725.1,3725.0,5.4911]
[1760231909526,0.00312176,3725.1,3725.0,0.4911]
[1760231910420,0.00312176,3725.1,3725.0,5.4911]
[1760231911130,9.857,3726.7,3725.0,5.4911]
[1760231911131,0.3324,3727.0,3725.5,0.1401]
[1760231911316,0.65303929,3726.9,3726.1,0.351]
[1760231911521,0.3324,3727.0,3726.1,0.351]
[1760231911720,0.65312635,3726.9,3726.7,0.48255]
[1760231911925,0.65312635,3726.8,3726.7,0.48255]
[1760231912127,0.00220218,3726.8,3726.7,0.83355]
[1760231913224,0.00220218,3726.8,3726.7,0.351]
[1760231914229,0.00220218,3726.8,3725.5,0.1401]
[1760231914230,0.3324,3726.2,3725.9,0.48265]
[1760231914429,0.3324,3726.4,3726.0,0.83364]
[1760231914629,0.81501,3726.3,3726.0,0.83364]
[1760231914822,0.48263,3726.2,3726.0,0.351]
[1760231915530,0.48263,3726.2,3724.8,1.20701]
[1760231915531,0.48269,3725.7,3725.3,0.48273]
[1760231915732,0.48266,3725.9,3725.3,0.82083]
[1760231915929,0.48273,3725.4,3724.9,0.48278]
[1760231916130,0.81513,3725.4,3724.9,0.48278]
[1760231916429,0.3324,3725.4,3724.6,0.3381]
[1760231916632,0.48278,3725.0,3724.6,0.3381]
[1760231916929,0.48284,3724.5,3724.3,0.34042209]
[1760231917428,0.3324,3724.4,3724.3,0.00232209]
[1760231917634,0.48297,3723.6,3723.0,0.62002]
[1760231917926,0.48295,3723.7,3723.1,0.3381]
[1760231918121,0.483,3723.3,3722.9,0.3381]
[1760231918529,0.00327198,3723.3,3722.9,0.0025406]
[1760231918836,0.81543,3723.0,3722.9,0.0025406]
[1760231919534,0.48627198,3723.3,3723.0,0.3381]
[1760231919726,0.48303,3723.1,3722.9,0.0025406]
[1760231920333,0.81543,3723.1,3722.9,0.0025406]
[1760231921136,0.00327198,3723.3,3722.9,0.0025406]
[1760231921137,0.00327198,3723.3,3723.2,0.3473]
[1760231922325,0.00327198,3723.3,3722.9,0.3498406]
[1760231922326,0.48302,3723.2,3722.9,0.3498406]
[1760231922525,0.33567198,3723.3,3722.9,0.3498406]
[1760231922726,0.48301,3723.2,3722.9,0.0025406]
[1760231922934,0.48303,3723.0,3722.9,0.0025406]
[1760231923332,0.3324,3723.1,3722.9,0.0025406]
[1760231923631,0.48627198,3723.3,3723.0,0.3473]
[1760231923829,0.00327198,3723.3,3722.9,0.0025406]
[1760231924027,0.00327198,3723.3,3723.2,0.3473]
[1760231924428,0.00327198,3723.3,3723.2,5.3473]
[1760231924628,0.81524,3724.5,3724.0,0.4829]
[1760231924835,0.48289,3724.2,3723.6,0.83025]
[1760231925029,0.48289,3724.2,3723.7,0.48293]
[1760231925328,0.48289,3724.2,3723.0,0.1364]
[1760231925329,0.48286,3724.4,3723.8,0.83022]
[1760231925527,0.48283,3724.6,3723.4,0.3473]
[1760231925736,0.48607713,3724.6,3723.6,0.3473]
[1760231925935,0.48285,3724.5,3724.0,0.48289]
[1760231926129,0.48285,3724.5,3724.2,0.3473]
[1760231926634,0.00324713,3724.6,3723.3,0.48299]
[1760231926839,0.483,3723.3,3723.0,0.1364]
[1760231927031,0.48302,3723.2,3723.0,0.3473]
[1760231927729,0.48302,3723.2,3722.9,0.0025406]
[1760231927730,0.81543,3723.0,3722.9,0.0025406]
[1760231928130,0.48315,3722.1,3721.9,0.3473]
[1760231928541,0.48317,3722.0,3721.3,0.83055]
[1760231928833,0.48323,3721.5,3721.3,0.3473]
[1760231929234,0.00233615,3721.5,3721.3,0.35012287]
[1760231929533,0.00233615,3721.5,3721.4,0.3473]
[1760231931542,0.4831,3722.5,3721.6,0.3473]
[1760231931843,0.3324,3721.9,3721.3,0.00282287]
[1760231932439,0.48321,3721.7,3721.3,0.00282287]
[1760231932633,0.48322,3721.6,3721.3,0.35012287]
[1760231932835,0.3324,3721.4,3721.3,0.00282287]
[1760231933037,0.3324,3721.4,3720.4,0.3473]
[1760231933834,0.48324,3721.5,3720.9,0.4833]
[1760231934036,0.48324,3721.5,3720.9,0.48666642]
[1760231934235,0.00311297,3721.9,3720.9,0.00336642]
[1760231934441,0.00311297,3721.9,3721.2,0.48326]
[1760231934841,0.48321,3721.7,3721.4,0.3473]
[1760231935045,0.48629297,3721.9,3721.4,0.3473]
[1760231935239,0.81869297,3721.9,3721.4,0.3473]
[1760231935438,0.8156,3721.8,3721.4,0.3473]
[1760231935649,0.48322,3721.6,3721.2,0.3473]
[1760231935837,0.81562,3721.6,3721.2,0.3473]
[1760231936146,0.00311297,3721.9,3721.6,0.8305]
[1760231936745,0.00311297,3721.9,3721.7,0.4832]
[1760231937233,0.00311297,3721.9,3721.8,0.3473]
[1760231937542,0.48303,3723.1,3722.5,0.8304]
[1760231937844,0.81546,3722.9,3722.5,0.3473]
[1760231938039,0.3324,3723.0,3722.5,0.83039]
[1760231938243,0.48303,3723.1,3722.5,0.83039]
[1760231938541,0.48614916,3723.1,3722.5,0.3473]
[1760231938744,0.48614916,3723.1,3722.7,0.48307]
[1760231939042,0.81854916,3723.1,3722.7,0.48307]
[1760231939345,0.48307,3722.8,3722.4,0.48311]
[1760231939533,0.00312916,3723.1,3722.8,0.48306]
[1760231939839,0.00312916,3723.1,3723.0,0.3473]
[1760231940040,0.00312916,3723.1,3723.0,0.4837]
[1760231940636,0.00312916,3723.1,3723.0,5.4837]
[1760231940835,0.48303,3723.0,3722.5,0.61949]
[1760231941035,0.48303,3723.0,3720.5,0.1364]
[1760231941036,1.54003,3722.9,3721.9,0.3473]
[1760231941347,0.3324,3722.7,3721.6,0.48322]
[1760231941643,0.81556,3722.1,3721.0,0.1364]
[1760231941841,0.48314,3722.2,3721.6,0.83051]
[1760231942040,0.3324,3722.7,3721.6,0.83051]
[1760231942041,0.48312,3722.4,3721.6,0.3473]
[1760231942344,0.48309,3722.6,3721.6,0.3473]
[1760231942550,0.3324,3722.7,3722.1,0.48314]
[1760231942844,0.3324,3722.7,3722.3,0.3473]
[1760231943240,0.48309,3722.6,3722.3,0.3473]
[1760231943442,0.3324,3722.7,3722.3,0.3473]
[1760231943443,0.48311,3722.5,3722.3,0.3473]
[1760231943639,0.00312916,3723.1,3721.8,0.48319]
[1760231943640,0.48314,3722.3,3721.8,0.48319]
[1760231943842,0.81554,3722.3,3721.8,0.83049]
[1760231944042,0.3324,3722.8,3721.9,0.3473]
[1760231944247,0.48308,3722.7,3722.3,0.3473]
[1760231944550,0.4831,3722.6,3722.3,0.3473]
[1760231944748,0.48311,3722.5,3722.0,0.61956]
[1760231944947,0.81576,3722.1,3721.6,0.48321]
[1760231945148,0.48316,3722.1,3721.8,0.48318]
[1760231945347,0.48313,3722.3,3721.8,0.48318]
[1760231945548,0.48313,3722.3,3722.0,0.3646]
[1760231945846,0.3326,3722.6,3721.6,0.3646]
[1760231946050,0.3326,3722.4,3721.6,0.3646]
[1760231946349,0.48318,3721.9,3721.6,0.3646]
[1760231946941,0.48318,3721.9,3721.4,0.48324]
[1760231947147,0.48327,3721.2,3720.9,0.00336642]
[1760231947347,0.3326,3721.0,3720.9,0.00336642]
[1760231949647,0.48329,3721.1,3720.9,0.00336642]
[1760231949951,0.81589,3721.1,3720.9,0.00336642]
[1760231950552,0.4832,3721.8,3721.0,0.5118]
[1760231950754,0.48324,3721.5,3721.0,0.48329]
[1760231951052,0.3326,3721.6,3721.2,0.48326]
[1760231951246,3.47684418,3722.4,3720.9,0.36796642]
[1760231951247,0.48317,3722.0,3721.5,0.48323]
[1760231951447,0.8157,3722.6,3721.6,0.3646]
[1760231951650,0.33572916,3723.1,3722.3,0.3646]
[1760231951945,0.48313,3722.3,3721.6,0.84781]
[1760231952148,0.48317,3722.0,3721.2,0.48326]
[1760231952348,0.3326,3722.2,3721.1,0.3646]
[1760231952551,0.3326,3722.2,3721.3,0.48325]
[1760231952552,0.48316,3722.1,3721.3,0.48325]
[1760231952850,0.81579,3721.9,3721.4,0.48324]
[1760231953047,0.81579,3721.9,3721.5,0.84782]
[1760231953351,0.3326,3722.5,3721.5,0.5118]
[1760231953748,0.48314,3722.3,3722.0,0.84776]
[1760231953954,0.4831,3722.6,3722.0,0.48316]
[1760231954155,0.3326,3723.0,3722.5,0.84769]
[1760231954353,0.3326,3723.0,3722.6,0.48308]
[1760231954553,0.81564,3723.0,3722.6,0.84768]
[1760231954955,0.00312916,3723.1,3721.5,0.1472]
[1760231954956,0.00312916,3723.1,3722.9,0.48304]
[1760231955158,0.33572916,3723.1,3722.9,0.48304]
[1760231955356,0.00312916,3723.1,3722.3,0.3646]
[1760231955553,0.3326,3723.0,3722.0,0.1472]
[1760231955755,0.48308,3722.7,3722.0,0.1472]
[1760231956056,0.3326,3723.0,3721.9,0.3646]
[1760231956252,0.4026,3723.0,3721.9,0.3646]
[1760231956453,0.48314,3722.2,3721.5,0.5118]
[1760231957361,0.81576,3722.1,3721.7,0.4832]
[1760231957553,0.81576,3722.1,3721.8,0.48318]
[1760231957857,3.52972872,3722.9,3721.9,0.3646]
[1760231958054,0.33572916,3723.1,3722.2,0.3646]
[1760231958248,0.33572916,3723.1,3721.8,0.48319]
[1760231958249,0.3326,3722.9,3721.8,0.48319]
[1760231958454,0.48316,3722.1,3721.6,0.48321]
[1760231958656,0.48321,3721.7,3721.1,0.3646]
[1760231958856,0.81581,3721.7,3721.3,0.48324]
[1760231959162,0.3326,3721.0,3720.9,0.00336642]
[1760231959862,0.0609,3722.0,3720.9,0.00336642]
[1760231960059,0.48324,3721.4,3720.9,0.00336642]
[1760231960260,0.3326,3721.0,3720.9,0.00336642]
[1760231960761,0.3326,3721.3,3720.9,0.36796642]
[1760231960959,0.48329,3721.1,3720.9,0.00336642]
[1760231961462,0.48326,3721.3,3721.0,0.3646]
[1760231961857,0.3326,3721.0,3720.9,0.00336642]
[1760231962058,0.48328,3721.1,3720.9,0.00336642]
[1760231962264,0.3326,3721.0,3720.9,0.00336642]
[1760231964956,0.48328,3721.1,3720.9,0.00336642]
[1760231965158,0.3326,3721.0,3720.9,0.00336642]
[1760231965362,0.48348,3719.6,3719.5,0.3646]
[1760231965565,1.2084,3720.6,3719.1,0.3646]
[1760231965566,0.48352,3719.3,3719.1,0.3646]
[1760231965770,0.48355,3719.1,3718.6,0.3646]
[1760231965975,0.48354,3719.1,3718.6,0.3646]
[1760231966166,0.3326,3719.6,3718.5,0.63081]
[1760231966372,0.48356,3719.0,3718.6,0.3646]
[1760231966577,0.1306,3718.0,3717.1,1.90998156]
[1760231966775,0.3035,3717.9,3716.6,0.3646]
[1760231966967,0.3035,3718.5,3716.6,0.3646]
[1760231967171,0.48356,3719.0,3718.0,0.3646]
[1760231967372,0.48358,3718.9,3718.0,0.3646]
[1760231967671,0.3035,3719.1,3718.0,0.51442131]
[1760231967878,9.87,3719.3,3718.6,0.48359]
[1760231968183,9.87,3719.3,3718.1,0.3646]
[1760231968184,0.00325686,3719.6,3718.9,0.3646]
[1760231968373,0.00325686,3719.6,3719.0,0.48355]
[1760231968574,0.00325686,3719.6,3719.1,0.3646]
[1760231968774,0.00325686,3719.6,3719.5,0.84809]
[1760231968969,0.00325686,3719.6,3719.5,5.99529]
[1760231969579,0.48332,3720.9,3719.6,0.3646]
[1760231969885,0.48332,3720.9,3719.6,0.48347]
[1760231969886,0.3035,3720.4,3719.6,0.48347]
[1760231970184,0.48341,3720.1,3719.3,0.48351]
[1760231970388,0.3035,3720.4,3719.1,0.3646]
[1760231970580,0.48347,3719.7,3719.1,0.3646]
[1760231971186,0.4835,3719.5,3719.1,0.3646]
[1760231971387,0.48347,3719.7,3719.1,0.3646]
[1760231971685,0.78699,3719.6,3719.1,0.3646]
[1760231971885,0.3035,3719.5,3719.1,0.3646]
[1760231972081,0.48344,3719.9,3719.1,0.84814]
[1760231972282,0.48346,3719.8,3719.1,0.48354]
[1760231972581,3.73045446,3720.3,3719.0,0.5118]
[1760231972786,3.73045446,3720.3,3719.1,0.3646]
[1760231972981,0.3035,3720.3,3719.1,0.3646]
[1760231973279,0.00324915,3720.4,3720.3,0.84799]
[1760231973682,0.00324915,3720.4,3720.3,5.84799]
[1760231974083,0.3035,3720.3,3719.8,0.48345]
[1760231974280,0.30674915,3720.4,3720.0,0.48342]
[1760231974581,0.30674915,3720.4,3720.0,0.84802]
[1760231974783,0.00324915,3720.4,3720.0,0.48342]
[1760231974981,0.00324915,3720.4,3720.3,0.3382]
[1760231975184,0.00324915,3720.4,3720.2,0.48339]
[1760231975987,0.3041,3720.3,3719.5,0.1433]
[1760231976179,0.00324915,3720.4,3720.1,0.48341]
[1760231976489,0.00324915,3720.4,3719.5,0.1433]
[1760231976490,0.3041,3720.3,3719.9,0.48343]
[1760231976886,0.3041,3720.3,3719.7,0.3382]
[1760231977188,0.48342,3720.1,3719.2,0.3382]
[1760231977385,0.48342,3720.1,3719.3,0.48352]
[1760231977687,0.48344,3720.0,3719.2,0.3382]
[1760231977876,0.48347,3719.7,3719.3,0.3382]
[1760231978083,0.48351,3719.4,3718.8,0.3382]
[1760231978480,0.48357,3718.9,3718.4,0.48363]
[1760231978677,0.3041,3719.2,3718.0,0.14592131]
[1760231978678,0.48361,3718.6,3718.0,0.62959131]
[1760231978879,0.3041,3718.8,3718.0,0.34082131]
[1760231979083,0.3041,3718.1,3718.0,0.00262131]
[1760231979290,0.3041,3718.1,3717.0,0.4815]
[1760231979291,0.48371,3717.8,3717.0,0.4815]
[1760231979589,0.3041,3718.4,3717.0,0.4815]
[1760231979883,0.48371,3717.8,3717.0,0.9653]
[1760231980082,0.3041,3717.9,3717.3,0.48378]
[1760231980283,0.48368,3718.1,3717.4,0.82195]
[1760231980787,1.20893,3718.9,3718.0,0.48368]
[1760231980788,0.4836,3718.7,3718.0,0.48368]
[1760231980987,0.3041,3718.9,3718.1,0.3382]
[1760231981183,0.48359,3718.8,3718.2,0.48365]
[1760231981490,1.31229,3720.0,3718.1,0.3352]
[1760231981491,0.3041,3719.4,3718.1,0.3352]
[1760231981683,1.31229,3720.0,3718.4,0.48362]
[1760231981880,3.4789453,3719.4,3718.9,0.48356]
[1760231982189,0.48347,3719.7,3719.1,0.48353]
[1760231982487,0.3041,3719.9,3718.9,0.3352]
[1760231982488,0.48345,3719.8,3718.9,0.3352]
[1760231982988,0.3041,3719.0,3718.4,0.48363]
[1760231983382,0.3041,3719.0,3718.3,0.3352]
[1760231983686,0.3041,3719.6,3718.6,0.3352]
[1760231983988,3.49654725,3719.8,3718.1,0.3352]
[1760231984198,3.49654725,3719.8,3717.6,0.3352]
[1760231984199,0.48362,3718.5,3717.6,0.3352]
[1760231984390,1.20878,3719.4,3717.3,0.33798532]
[1760231984391,0.3041,3718.2,3717.3,0.33798532]
[1760231984691,0.48373,3717.7,3717.3,0.33798532]
[1760231984890,0.78993383,3717.7,3717.3,0.33798532]
[1760231985090,0.3041,3717.5,3717.3,0.00278532]
[1760231985292,0.78786,3717.4,3717.3,0.00278532]
[1760231986493,0.3041,3717.4,3716.4,0.3352]
[1760231986701,0.48381,3717.1,3716.5,0.48388]
[1760231987195,0.48381,3717.1,3716.6,0.48386]
[1760231987391,0.00210383,3717.7,3717.1,0.4838]
[1760231987592,0.00210383,3717.7,3716.5,0.1465]
[1760231987593,0.00210383,3717.7,3717.3,0.48377]
[1760231987794,0.00210383,3717.7,3717.0,0.48381]
[1760231987795,0.48376,3717.5,3717.0,0.48381]
[1760231987995,0.48381,3717.1,3716.4,0.48389]
[1760231988296,0.78797,3716.6,3716.0,0.63044]
[1760231989094,0.3041,3716.6,3715.8,0.3352]
[1760231989395,0.3041,3716.6,3715.6,0.48399]
[1760231989697,0.3041,3716.6,3715.8,0.3352]
[1760231989989,0.48393,3716.2,3715.5,0.1465]
[1760231990188,1.2098,3716.2,3715.3,0.3352]
[1760231990394,0.78804,3716.1,3715.2,0.48404]
[1760231990589,0.3041,3716.1,3715.5,0.484]
[1760231990783,0.48398,3715.8,3715.2,0.48404]
[1760231990983,0.3041,3716.1,3715.1,0.3352]
[1760231991184,0.3041,3715.9,3714.7,0.4841]
[1760231991391,0.3041,3715.9,3714.8,0.48409]
[1760231991392,0.48402,3715.5,3714.8,0.48409]
[1760231991590,0.48403,3715.4,3714.7,0.4841]
[1760231991789,0.48404,3715.3,3714.7,0.4841]
[1760231991987,0.48407,3715.1,3714.5,0.4817]
[1760231992184,0.48407,3715.1,3714.5,0.3352]
[1760231992385,0.3041,3715.7,3714.0,0.1465]
[1760231992587,0.1037,3716.0,3714.2,0.48417]
[1760231992588,0.3041,3714.8,3714.2,0.48417]
[1760231992786,0.00209693,3714.8,3714.4,0.48414]
[1760231992990,0.00209693,3714.8,3714.5,0.3352]
[1760231993187,0.00209693,3714.8,3714.1,0.48418]
[1760231993382,0.00209693,3714.8,3714.1,0.3352]
[1760231993787,0.3041,3714.5,3713.6,0.3352]
[1760231993991,0.00209693,3714.8,3713.6,0.3352]
[1760231994193,0.48413,3714.6,3713.9,0.48421]
[1760231994397,0.78823,3714.6,3713.9,0.48421]
[1760231994603,0.00209693,3714.8,3714.6,0.81933]
[1760231994798,0.00209693,3714.8,3714.7,0.3352]
[1760231995291,0.00209693,3714.8,3714.7,5.3352]
[1760231995492,0.3041,3716.1,3715.7,0.48397]
[1760231995687,0.48391,3716.3,3715.7,0.48397]
[1760231995888,0.48391,3716.3,3715.5,0.484]
[1760231996089,0.48391,3716.3,3715.1,0.3352]
[1760231996090,0.48393,3716.2,3715.6,0.48399]
[1760231996286,0.3041,3716.4,3715.6,0.48399]
[1760231996488,0.3041,3716.4,3715.5,0.3352]
[1760231996489,0.30645802,3716.4,3715.5,0.3352]
[1760231996695,0.00235802,3716.4,3716.1,0.81913]
[1760231996998,0.00235802,3716.4,3716.3,0.3352]
[1760231997293,0.00235802,3716.4,3715.7,0.48397]
[1760231997485,0.00235802,3716.4,3716.0,0.3352]
[1760231997690,0.00235802,3716.4,3716.3,0.48391]
[1760231997890,0.00235802,3716.4,3716.0,0.48394]
[1760231998092,0.00235802,3716.4,3715.6,0.3352]
[1760231998285,0.00235802,3716.4,3715.5,0.1465]
[1760231998286,0.00235802,3716.4,3716.3,0.3352]
[1760231998695,0.00235802,3716.4,3715.9,0.81915]
[1760231998696,0.3041,3716.3,3715.9,0.81915]
[1760231998894,0.30645802,3716.4,3715.4,0.3352]
[1760231999097,0.48399,3715.7,3715.0,0.63058]
[1760231999601,0.3041,3715.9,3714.9,0.3352]
[1760231999803,0.48405,3715.3,3714.9,0.3352]
[1760232000001,0.78815,3715.3,3714.9,0.3352]
[1760232000300,0.3041,3714.8,3714.7,0.00268671]
[1760232000502,0.4841,3714.9,3713.5,0.1465]
[1760232000503,0.48414,3714.6,3713.5,0.1465]
[1760232000694,0.3041,3714.9,3713.5,0.1465]
[1760232000695,0.3041,3714.9,3713.6,0.3352]
[1760232001093,0.48416,3714.4,3713.7,0.48424]
[1760232001395,0.48417,3714.3,3713.7,0.48424]
[1760232001597,0.3041,3714.4,3713.6,0.3352]
[1760232001797,0.48412,3714.7,3714.1,0.48419]
[1760232002000,0.3041,3714.9,3713.8,0.3352]
[1760232002308,0.4078,3715.5,3714.1,0.3352]
[1760232002595,0.3655,3715.5,3714.3,0.3352]
[1760232002796,0.3041,3715.1,3714.2,0.48417]
[1760232002998,0.3041,3715.1,3714.5,0.48414]
[1760232003294,0.48421,3714.0,3713.2,0.8195]
[1760232003602,0.48424,3713.8,3713.2,0.3352]
[1760232003898,0.48424,3713.8,3712.0,0.1465]
[1760232003899,0.48428,3713.5,3712.8,0.51129385]
[1760232004100,0.00273424,3713.8,3713.2,0.8195]
[1760232004295,0.00273424,3713.8,3713.3,0.48429]
[1760232004490,0.00273424,3713.8,3713.4,0.81948]
[1760232004690,0.00273424,3713.8,3713.7,0.3632]
[1760232005094,0.00273424,3713.8,3713.6,0.48425]
[1760232005495,0.78888,3715.0,3714.2,0.48418]
[1760232005695,0.3744,3715.0,3713.5,0.5008]
[1760232005891,0.48413,3714.6,3714.0,0.4842]
[1760232006092,0.78893,3714.6,3714.0,0.4842]
[1760232006497,0.78893,3714.6,3714.0,0.00273424]
[1760232006498,0.00249837,3714.6,3714.0,0.00273424]
[1760232006700,0.48418,3714.2,3714.0,0.00273424]
[1760232006910,0.3048,3714.1,3714.0,0.00273424]
[1760232007699,0.3048,3713.7,3712.5,0.5097]
[1760232007900,0.3048,3714.0,3712.9,0.48434]
[1760232008206,0.48428,3713.5,3712.9,0.48434]
[1760232008502,0.3048,3713.4,3712.8,0.02693385]
[1760232008700,0.48424,3713.8,3713.3,0.48429]
[1760232008894,0.78904,3713.8,3713.3,0.48429]
[1760232009098,0.3048,3713.8,3713.4,0.48427]
[1760232009307,0.3048,3714.4,3713.6,0.48425]
[1760232009505,0.4842,3714.1,3713.6,0.48425]
[1760232009707,0.3048,3714.0,3713.6,0.48425]
[1760232010106,0.3048,3714.4,3713.3,0.3632]
[1760232010300,0.48431,3713.2,3712.8,0.02693385]
[1760232010504,0.3048,3713.1,3712.8,0.02693385]
[1760232010704,0.48431,3713.2,3712.8,0.02693385]
[1760232010907,0.3048,3713.1,3712.8,0.02693385]
[1760232011104,0.3048,3713.1,3712.8,0.51129385]
[1760232011304,0.48426,3713.6,3713.0,0.48433]
[1760232011509,0.48426,3713.6,3713.1,0.48432]
[1760232011717,0.21499865,3714.4,3713.6,0.48425]
[1760232011718,0.3048,3713.8,3713.6,0.48425]
[1760232011912,0.4842,3714.1,3713.3,0.4843]
[1760232012205,4.28411526,3714.4,3713.7,0.48424]
[1760232012406,0.3048,3714.2,3713.8,0.48422]
[1760232012711,0.48405,3715.2,3714.5,0.3632]
[1760232012901,0.78884,3715.3,3714.4,0.48415]
[1760232013101,0.3048,3715.3,3714.4,0.84735]
[1760232013300,0.3048,3715.3,3714.5,0.3632]
[1760232013605,0.78884,3715.3,3714.5,0.3632]
[1760232013803,0.48397,3715.8,3714.6,0.3632]
[1760232014008,0.3048,3715.9,3714.6,0.3632]
[1760232014308,0.48398,3715.8,3715.1,0.48405]
[1760232014608,0.48398,3715.8,3715.3,0.48403]
[1760232014809,0.00282201,3715.8,3715.3,0.48403]
[1760232015005,0.00282201,3715.8,3714.6,0.3632]
[1760232015202,0.00282201,3715.8,3715.4,0.48402]